[Event "*** Titled Tuesday Blitz"]
[Site "Chess.com"]
[Date "2019.08.06"]
[Round "10"]
[White "Morscas"]
[Black "ChrisTool2"]
[Result "1-0"]
[WhiteElo "2205"]
[BlackElo "2266"]
[TimeControl "180+2"]
[EndTime "15:24:42 PDT"]
[Termination "Morscas won by resignation"]

1. e4 {[%clk 0:02:59]} 1... e6 {[%clk 0:02:59.4]} 2. d4 {[%clk 0:02:59.3]} 2...
d5 {[%clk 0:03:00.9]} 3. Nd2 {[%clk 0:03:00.8]} 3... Nf6 {[%clk 0:03:01.1]} 4.
e5 {[%clk 0:03:01.9]} 4... Nfd7 {[%clk 0:03:02.7]} 5. Bd3 {[%clk 0:03:03.5]}
5... c5 {[%clk 0:03:04.3]} 6. c3 {[%clk 0:03:05]} 6... Nc6 {[%clk 0:03:05.4]} 7.
Ne2 {[%clk 0:03:06.5]} 7... cxd4 {[%clk 0:03:07.1]} 8. cxd4 {[%clk 0:03:08.1]}
8... f6 {[%clk 0:03:08.3]} 9. exf6 {[%clk 0:03:09]} 9... Nxf6 {[%clk 0:03:09.9]}
10. O-O {[%clk 0:03:09]} 10... Bd6 {[%clk 0:03:11.4]} 11. Nf3 {[%clk 0:03:10.2]}
11... Qc7 {[%clk 0:03:12.8]} 12. h3 {[%clk 0:03:10.9]} 12... O-O {[%clk
0:03:14.3]} 13. Be3 {[%clk 0:03:10.3]} 13... Bd7 {[%clk 0:03:10.2]} 14. Re1
{[%clk 0:03:10.7]} 14... Rae8 {[%clk 0:03:10.7]} 15. Rc1 {[%clk 0:03:10]} 15...
Re7 {[%clk 0:03:04.6]} 16. Nc3 {[%clk 0:03:10.4]} 16... a6 {[%clk 0:03:03.9]}
17. a3 {[%clk 0:03:11.6]} 17... Be8 {[%clk 0:03:05.2]} 18. b4 {[%clk 0:03:13.1]}
18... Qb8 {[%clk 0:02:45.8]} 19. b5 {[%clk 0:03:11.6]} 19... axb5 {[%clk
0:02:39.1]} 20. Nxb5 {[%clk 0:03:13.5]} 20... Bf4 {[%clk 0:02:39.4]} 21. Bxf4
{[%clk 0:03:10.6]} 21... Qxf4 {[%clk 0:02:41.3]} 22. Qd2 {[%clk 0:02:57.5]}
22... Qb8 {[%clk 0:02:38.7]} 23. Ne5 {[%clk 0:02:55.6]} 23... Nxe5 {[%clk
0:02:31.3]} 24. Rxe5 {[%clk 0:02:54]} 24... Bxb5 {[%clk 0:02:27.2]} 25. Bxb5
{[%clk 0:02:55.9]} 25... Ne4 {[%clk 0:02:28.5]} 26. Qe3 {[%clk 0:02:49.1]} 26...
Nxf2 {[%clk 0:02:12.9]} 27. Rxe6 {[%clk 0:02:47.8]} 27... Ref7 {[%clk
0:02:04.3]} 28. Rf1 {[%clk 0:02:38.9]} 28... Qf4 {[%clk 0:01:23.4]} 29. Qxf4
{[%clk 0:02:27.3]} 29... Rxf4 {[%clk 0:01:22.9]} 30. Re5 {[%clk 0:02:23]} 30...
Ne4 {[%clk 0:00:53.1]} 31. Rxf4 {[%clk 0:02:23]} 31... Rxf4 {[%clk 0:00:55]} 32.
Rxd5 {[%clk 0:02:22.5]} 32... Nc3 {[%clk 0:00:50]} 33. Rd8+ {[%clk 0:02:22.8]}
33... Kf7 {[%clk 0:00:51.6]} 34. Bc4+ {[%clk 0:02:23.6]} 34... Ke7 {[%clk
0:00:50.6]} 35. Rg8 {[%clk 0:02:23.7]} 35... Rxd4 {[%clk 0:00:47.7]} 36. Rxg7+
{[%clk 0:02:23.7]} 36... Kf6 {[%clk 0:00:40.3]} 37. Rf7+ {[%clk 0:02:23.1]}
37... Kg6 {[%clk 0:00:39.9]} 38. Bb3 {[%clk 0:02:22.3]} 38... b5 {[%clk
0:00:37.1]} 39. Kf2 {[%clk 0:02:20.4]} 39... Rd2+ {[%clk 0:00:35.3]} 40. Kf3
{[%clk 0:02:17]} 40... Rb2 {[%clk 0:00:33.6]} 41. Be6 {[%clk 0:02:17]} 41... Ne2
{[%clk 0:00:32.1]} 42. Bd5 {[%clk 0:02:08]} 42... Ng1+ {[%clk 0:00:18.2]} 43.
Kg4 {[%clk 0:02:02.3]} 43... h5+ {[%clk 0:00:14.2]} 44. Kh4 {[%clk 0:01:58.2]}
44... Rd2 {[%clk 0:00:15.8]} 45. Rd7 {[%clk 0:01:56.8]} 45... Kf6 {[%clk
0:00:14.7]} 46. Kxh5 {[%clk 0:01:55.5]} 46... Ne2 {[%clk 0:00:12.4]} 47. Kg4
{[%clk 0:01:51.8]} 47... Ke5 {[%clk 0:00:11.1]} 48. Bc6 {[%clk 0:01:49.3]} 48...
Rc2 {[%clk 0:00:10.5]} 49. Bxb5 {[%clk 0:01:49.8]} 49... Nd4 {[%clk 0:00:09.2]}
50. a4 {[%clk 0:01:42.2]} 50... Rxg2+ {[%clk 0:00:09.7]} 51. Kh5 {[%clk
0:01:41.6]} 51... Nf5 {[%clk 0:00:09.8]} 52. a5 {[%clk 0:01:29.6]} 52... Kf4
{[%clk 0:00:10.3]} 53. h4 {[%clk 0:01:26.7]} 53... Rg4 {[%clk 0:00:10.6]} 54. a6
{[%clk 0:01:20.1]} 54... Rxh4+ {[%clk 0:00:08]} 55. Kg6 {[%clk 0:01:21.4]} 55...
Rh6+ {[%clk 0:00:08.2]} 56. Kf7 {[%clk 0:01:21.3]} 56... Nd6+ {[%clk 0:00:04.7]}
57. Kg7 {[%clk 0:01:14]} 57... Nf5+ {[%clk 0:00:05]} 58. Kg8 {[%clk 0:01:13.3]}
58... Rg6+ {[%clk 0:00:03.3]} 59. Kf8 {[%clk 0:01:09.7]} 59... Rf6+ {[%clk
0:00:03.9]} 60. Ke8 {[%clk 0:01:03.8]} 60... Re6+ {[%clk 0:00:04.7]} 61. Kd8
{[%clk 0:01:03.5]} 61... Rh6 {[%clk 0:00:05.9]} 62. a7 {[%clk 0:01:01.3]} 62...
Nd6 {[%clk 0:00:05.5]} 63. Rxd6 {[%clk 0:00:52.6]} 63... Rxd6+ {[%clk
0:00:07.4]} 64. Kc7 {[%clk 0:00:53.6]} 64... Rd5 {[%clk 0:00:07.8]} 65. a8=Q
{[%clk 0:00:50.9]} 1-0

[Event "*** Titled Tuesday Blitz"]
[Site "Chess.com"]
[Date "2019.08.06"]
[Round "10"]
[White "Bigfish1995"]
[Black "AntonSmirnov"]
[Result "0-1"]
[WhiteElo "3044"]
[BlackElo "2914"]
[TimeControl "180+2"]
[EndTime "15:24:43 PDT"]
[Termination "AntonSmirnov won by resignation"]

1. e4 {[%clk 0:02:59.6]} 1... e5 {[%clk 0:03:00.3]} 2. Nf3 {[%clk 0:03:00.6]}
2... Nf6 {[%clk 0:03:01.4]} 3. Nxe5 {[%clk 0:02:57.2]} 3... d6 {[%clk
0:03:02.3]} 4. Nf3 {[%clk 0:02:57.9]} 4... Nxe4 {[%clk 0:03:03.5]} 5. d4 {[%clk
0:02:58.6]} 5... d5 {[%clk 0:03:04.3]} 6. Bd3 {[%clk 0:03:00.3]} 6... Bd6 {[%clk
0:03:05.3]} 7. O-O {[%clk 0:02:59]} 7... O-O {[%clk 0:03:06]} 8. c4 {[%clk
0:02:59.3]} 8... c6 {[%clk 0:03:06.7]} 9. Qb3 {[%clk 0:03:00.2]} 9... Na6 {[%clk
0:02:44]} 10. Nc3 {[%clk 0:02:49.7]} 10... Nxc3 {[%clk 0:02:41]} 11. bxc3 {[%clk
0:02:47.9]} 11... dxc4 {[%clk 0:02:41.4]} 12. Bxc4 {[%clk 0:02:45.7]} 12... b5
{[%clk 0:02:39.6]} 13. Bd3 {[%clk 0:02:42.1]} 13... Nc7 {[%clk 0:02:37.2]} 14.
Be4 {[%clk 0:02:34]} 14... Bd7 {[%clk 0:02:28.9]} 15. Ne5 {[%clk 0:02:27.9]}
15... Bxe5 {[%clk 0:02:21.4]} 16. dxe5 {[%clk 0:02:27.7]} 16... h6 {[%clk
0:02:03.5]} 17. Ba3 {[%clk 0:02:15.3]} 17... Re8 {[%clk 0:02:04]} 18. Rad1
{[%clk 0:01:42.3]} 18... Qc8 {[%clk 0:02:04.5]} 19. f4 {[%clk 0:01:29.5]} 19...
Nd5 {[%clk 0:01:57.6]} 20. Bc5 {[%clk 0:01:02]} 20... Bf5 {[%clk 0:01:48.5]} 21.
Bxd5 {[%clk 0:00:43.2]} 21... cxd5 {[%clk 0:01:49.3]} 22. Qxd5 {[%clk
0:00:39.7]} 22... Qa6 {[%clk 0:01:31.5]} 23. a3 {[%clk 0:00:36.4]} 23... Qg6
{[%clk 0:01:31]} 24. Qf3 {[%clk 0:00:27.3]} 24... Bg4 {[%clk 0:01:24.7]} 25. Qg3
{[%clk 0:00:18.9]} 25... Bxd1 {[%clk 0:01:25.5]} 26. Qxg6 {[%clk 0:00:20.1]}
26... fxg6 {[%clk 0:01:26.8]} 27. Rxd1 {[%clk 0:00:21.8]} 27... Red8 {[%clk
0:01:27.9]} 28. Re1 {[%clk 0:00:14.5]} 28... Rd3 {[%clk 0:01:23.3]} 29. Bd4
{[%clk 0:00:13.8]} 29... a5 {[%clk 0:01:20.7]} 30. Kf2 {[%clk 0:00:11.3]} 30...
Rd2+ {[%clk 0:01:19.3]} 31. Kf3 {[%clk 0:00:11.7]} 31... Ra2 {[%clk 0:01:03.9]}
32. Rb1 {[%clk 0:00:08.9]} 32... Rb8 {[%clk 0:01:02.8]} 33. Bc5 {[%clk
0:00:08.4]} 33... Kf7 {[%clk 0:00:54.1]} 34. h4 {[%clk 0:00:03.6]} 34... Rc2
{[%clk 0:00:53.7]} 35. Bd4 {[%clk 0:00:04.4]} 35... Ke6 {[%clk 0:00:54.3]} 36.
g3 {[%clk 0:00:05.3]} 36... h5 {[%clk 0:00:53.8]} 37. Ke4 {[%clk 0:00:04]} 37...
Ra2 {[%clk 0:00:51.3]} 38. Bc5 {[%clk 0:00:05.1]} 38... Re2+ {[%clk 0:00:52.3]}
39. Kf3 {[%clk 0:00:06.3]} 39... Rc2 {[%clk 0:00:53.4]} 40. Bd4 {[%clk
0:00:07.4]} 40... Kf5 {[%clk 0:00:53.2]} 41. Re1 {[%clk 0:00:07.3]} 41... Ke6
{[%clk 0:00:48.3]} 42. Rb1 {[%clk 0:00:07.7]} 42... Kd5 {[%clk 0:00:49.5]} 43.
Rd1 {[%clk 0:00:06.6]} 43... Kc6 {[%clk 0:00:29]} 44. Re1 {[%clk 0:00:03.4]}
44... Re8 {[%clk 0:00:29.2]} 45. Ra1 {[%clk 0:00:03.2]} 45... Kd5 {[%clk
0:00:27]} 46. Rb1 {[%clk 0:00:03]} 46... Kc4 {[%clk 0:00:27.8]} 47. Ke4 {[%clk
0:00:03.3]} 47... Ra2 {[%clk 0:00:26.3]} 48. f5 {[%clk 0:00:04.3]} 48... gxf5+
{[%clk 0:00:24.6]} 49. Kxf5 {[%clk 0:00:05.7]} 49... Rxa3 {[%clk 0:00:26.1]} 50.
Kg6 {[%clk 0:00:07.3]} 50... b4 {[%clk 0:00:27]} 51. Kf7 {[%clk 0:00:08.3]}
51... Rc8 {[%clk 0:00:24.1]} 52. e6 {[%clk 0:00:09.4]} 52... bxc3 {[%clk
0:00:25.3]} 53. Bxg7 {[%clk 0:00:10.7]} 53... c2 {[%clk 0:00:23.5]} 54. Rc1
{[%clk 0:00:09.6]} 54... Rf3+ {[%clk 0:00:24.4]} 55. Bf6 {[%clk 0:00:10.7]}
55... Kd3 {[%clk 0:00:25.6]} 56. e7 {[%clk 0:00:10.4]} 56... Kd2 {[%clk
0:00:26.9]} 57. Rxc2+ {[%clk 0:00:04.3]} 57... Kxc2 {[%clk 0:00:28]} 0-1

[Event "*** Titled Tuesday Blitz"]
[Site "Chess.com"]
[Date "2019.08.06"]
[Round "10"]
[White "riconaipe"]
[Black "Chigorinetz"]
[Result "1-0"]
[WhiteElo "2471"]
[BlackElo "2589"]
[TimeControl "180+2"]
[EndTime "15:24:51 PDT"]
[Termination "riconaipe won by resignation"]

1. d4 {[%clk 0:03:01.9]} 1... d5 {[%clk 0:03:00.3]} 2. c4 {[%clk 0:03:02.3]}
2... dxc4 {[%clk 0:03:01.1]} 3. e4 {[%clk 0:03:00.3]} 3... Nc6 {[%clk
0:03:01.2]} 4. Be3 {[%clk 0:02:46.7]} 4... Nf6 {[%clk 0:03:00.1]} 5. e5 {[%clk
0:02:45]} 5... Nd5 {[%clk 0:02:59.7]} 6. Bxc4 {[%clk 0:02:46.1]} 6... Be6 {[%clk
0:02:45.5]} 7. Bb3 {[%clk 0:02:32.8]} 7... Qd7 {[%clk 0:02:32.2]} 8. Nc3 {[%clk
0:02:31.6]} 8... O-O-O {[%clk 0:02:28.9]} 9. Ne4 {[%clk 0:02:28.7]} 9... Nxe3
{[%clk 0:02:26.3]} 10. fxe3 {[%clk 0:02:28.9]} 10... Bd5 {[%clk 0:02:21.7]} 11.
Nc5 {[%clk 0:02:26.8]} 11... Qe8 {[%clk 0:01:51.2]} 12. Bxd5 {[%clk 0:02:11.7]}
12... Rxd5 {[%clk 0:01:51.8]} 13. Qb3 {[%clk 0:02:12.7]} 13... Rxc5 {[%clk
0:01:52.6]} 14. dxc5 {[%clk 0:02:14.1]} 14... e6 {[%clk 0:01:51.5]} 15. Qc3
{[%clk 0:02:05.1]} 15... f6 {[%clk 0:01:49.1]} 16. Nf3 {[%clk 0:02:03.6]} 16...
Be7 {[%clk 0:01:39.2]} 17. O-O {[%clk 0:01:49.3]} 17... fxe5 {[%clk 0:01:39.7]}
18. Qc4 {[%clk 0:01:50.1]} 18... Bf6 {[%clk 0:01:34.8]} 19. b4 {[%clk
0:01:51.4]} 19... e4 {[%clk 0:01:35]} 20. Nd4 {[%clk 0:01:45.7]} 20... Nxd4
{[%clk 0:01:24.9]} 21. exd4 {[%clk 0:01:46.3]} 21... Qd7 {[%clk 0:01:26.5]} 22.
Rad1 {[%clk 0:01:46.7]} 22... Rd8 {[%clk 0:01:27.3]} 23. Kh1 {[%clk 0:01:32.8]}
23... Bxd4 {[%clk 0:01:21.4]} 24. Rfe1 {[%clk 0:01:17.5]} 24... e5 {[%clk
0:01:14.9]} 25. Rxe4 {[%clk 0:01:07.4]} 25... Qc6 {[%clk 0:01:13.5]} 26. Ree1
{[%clk 0:01:04.2]} 26... b5 {[%clk 0:01:12]} 27. Qe2 {[%clk 0:00:57.4]} 27...
Qd5 {[%clk 0:01:08]} 28. Qxb5 {[%clk 0:00:50]} 28... Rf8 {[%clk 0:01:02.5]} 29.
Qa6+ {[%clk 0:00:41]} 29... Kd7 {[%clk 0:01:01.7]} 30. Re2 {[%clk 0:00:29.1]}
30... Rf6 {[%clk 0:00:55.4]} 31. Qxa7 {[%clk 0:00:25]} 31... Qc4 {[%clk
0:00:55.2]} 32. Qa4+ {[%clk 0:00:25.3]} 32... c6 {[%clk 0:00:47]} 33. Qc2 {[%clk
0:00:20.8]} 33... Qxb4 {[%clk 0:00:42.9]} 34. Rxe5 {[%clk 0:00:20]} 34... Kc8
{[%clk 0:00:43]} 35. Re8+ {[%clk 0:00:15.1]} 35... Kc7 {[%clk 0:00:38.4]} 36.
Re7+ {[%clk 0:00:13]} 36... Kc8 {[%clk 0:00:38]} 37. Qe4 {[%clk 0:00:07.2]}
37... Qxc5 {[%clk 0:00:29.2]} 38. Re6 {[%clk 0:00:07.2]} 38... Rxe6 {[%clk
0:00:15.6]} 39. Qxe6+ {[%clk 0:00:08.6]} 39... Kc7 {[%clk 0:00:16.7]} 40. Qf7+
{[%clk 0:00:09.9]} 40... Kb6 {[%clk 0:00:14.6]} 41. Qb3+ {[%clk 0:00:10.5]}
41... Kc7 {[%clk 0:00:15.4]} 42. Qf7+ {[%clk 0:00:10.6]} 42... Kb6 {[%clk
0:00:16.4]} 43. Rb1+ {[%clk 0:00:11.7]} 43... Ka6 {[%clk 0:00:16.7]} 44. Qb7+
{[%clk 0:00:11.7]} 44... Ka5 {[%clk 0:00:17.1]} 45. Qa8+ {[%clk 0:00:08.4]}
45... Qa7 {[%clk 0:00:18]} 46. Qxc6 {[%clk 0:00:08.8]} 46... Qc5 {[%clk
0:00:16.1]} 47. Qxc5+ {[%clk 0:00:06]} 47... Bxc5 {[%clk 0:00:16.6]} 48. Rb7
{[%clk 0:00:07.5]} 48... h6 {[%clk 0:00:16.6]} 49. Rxg7 {[%clk 0:00:06.6]} 1-0

[Event "*** Titled Tuesday Blitz"]
[Site "Chess.com"]
[Date "2019.08.06"]
[Round "10"]
[White "chessbia"]
[Black "politeplayer"]
[Result "0-1"]
[WhiteElo "2242"]
[BlackElo "2248"]
[TimeControl "180+2"]
[EndTime "15:24:53 PDT"]
[Termination "politeplayer won by checkmate"]

1. d4 {[%clk 0:03:01.9]} 1... Nf6 {[%clk 0:02:58.8]} 2. c4 {[%clk 0:03:02.6]}
2... c5 {[%clk 0:02:59.3]} 3. d5 {[%clk 0:03:03.5]} 3... e6 {[%clk 0:03:00.5]}
4. Nc3 {[%clk 0:03:03.7]} 4... exd5 {[%clk 0:03:00.7]} 5. cxd5 {[%clk
0:03:05.6]} 5... d6 {[%clk 0:03:02.1]} 6. Nf3 {[%clk 0:03:06.1]} 6... g6 {[%clk
0:03:03.2]} 7. Nd2 {[%clk 0:03:07.3]} 7... Bg7 {[%clk 0:03:04]} 8. e4 {[%clk
0:03:08.9]} 8... O-O {[%clk 0:03:04.1]} 9. Be2 {[%clk 0:03:10.5]} 9... a6 {[%clk
0:03:02.9]} 10. a4 {[%clk 0:03:10]} 10... Nbd7 {[%clk 0:03:02.3]} 11. O-O {[%clk
0:03:10.6]} 11... Rb8 {[%clk 0:02:45.2]} 12. Re1 {[%clk 0:03:08.1]} 12... g5
{[%clk 0:02:37.2]} 13. Nf1 {[%clk 0:03:03.9]} 13... h6 {[%clk 0:02:37.1]} 14.
Ng3 {[%clk 0:03:04.1]} 14... Ne5 {[%clk 0:02:36.6]} 15. Bd2 {[%clk 0:02:45.5]}
15... c4 {[%clk 0:02:33.9]} 16. a5 {[%clk 0:02:42.7]} 16... b5 {[%clk
0:02:30.8]} 17. Be3 {[%clk 0:02:33.7]} 17... b4 {[%clk 0:02:28.9]} 18. Nb1
{[%clk 0:02:31.1]} 18... Nfg4 {[%clk 0:02:16.7]} 19. Bd4 {[%clk 0:02:25]} 19...
Nd3 {[%clk 0:01:45]} 20. Bxg7 {[%clk 0:02:20.2]} 20... Ngxf2 {[%clk 0:01:41.7]}
21. Qc2 {[%clk 0:02:05.6]} 21... Kxg7 {[%clk 0:01:29.6]} 22. Rf1 {[%clk
0:01:58.8]} 22... Qc7 {[%clk 0:01:18.9]} 23. Nd2 {[%clk 0:01:37.9]} 23... Qc5
{[%clk 0:01:14.8]} 24. Nh5+ {[%clk 0:01:26.2]} 24... Kh8 {[%clk 0:01:12]} 25. g3
{[%clk 0:01:17]} 25... Bh3 {[%clk 0:00:40.5]} 26. Qxc4 {[%clk 0:01:00.3]} 26...
Bxf1 {[%clk 0:00:29.5]} 27. Rxf1 {[%clk 0:00:52.7]} 27... Nxe4+ {[%clk
0:00:15.4]} 28. Qxc5 {[%clk 0:00:49.6]} 28... Nexc5 {[%clk 0:00:15.5]} 29. Rf6
{[%clk 0:00:49.5]} 29... Ne5 {[%clk 0:00:14.5]} 30. Rxh6+ {[%clk 0:00:46.7]}
30... Kg8 {[%clk 0:00:14.9]} 31. Rxd6 {[%clk 0:00:32.1]} 31... Rfd8 {[%clk
0:00:11.5]} 32. Nf6+ {[%clk 0:00:29.8]} 32... Kf8 {[%clk 0:00:11.6]} 33. Rb6
{[%clk 0:00:14.7]} 33... Rxb6 {[%clk 0:00:11.8]} 34. axb6 {[%clk 0:00:15.6]}
34... Rb8 {[%clk 0:00:12.9]} 35. Nde4 {[%clk 0:00:08.1]} 35... Nxe4 {[%clk
0:00:12.3]} 36. Nxe4 {[%clk 0:00:08.9]} 36... Rxb6 {[%clk 0:00:13.5]} 37. Nxg5
{[%clk 0:00:10.3]} 37... Rd6 {[%clk 0:00:12.6]} 38. Kf2 {[%clk 0:00:05.8]} 38...
Rxd5 {[%clk 0:00:12.8]} 39. Bxa6 {[%clk 0:00:06.9]} 39... Rd2+ {[%clk
0:00:13.4]} 40. Ke3 {[%clk 0:00:08.3]} 40... Rxb2 {[%clk 0:00:13.3]} 41. h4
{[%clk 0:00:09.6]} 41... Rb3+ {[%clk 0:00:12.4]} 42. Kf4 {[%clk 0:00:09.3]}
42... Ng6+ {[%clk 0:00:13.2]} 43. Kg4 {[%clk 0:00:09.4]} 43... Rc3 {[%clk
0:00:11.7]} 44. Ne4 {[%clk 0:00:07.7]} 44... Rc2 {[%clk 0:00:08.5]} 45. h5
{[%clk 0:00:08.5]} 45... b3 {[%clk 0:00:08.4]} 46. hxg6 {[%clk 0:00:08.9]} 46...
b2 {[%clk 0:00:09.3]} 47. gxf7 {[%clk 0:00:03.7]} 47... b1=Q {[%clk 0:00:08.4]}
48. Ng5 {[%clk 0:00:04.3]} 48... Qd1+ {[%clk 0:00:05.5]} 49. Kf5 {[%clk
0:00:04.9]} 49... Qd7+ {[%clk 0:00:05.9]} 50. Kg6 {[%clk 0:00:04.9]} 50... Qd6+
{[%clk 0:00:05.9]} 51. Kh7 {[%clk 0:00:04.3]} 51... Qxa6 {[%clk 0:00:06.4]} 52.
g4 {[%clk 0:00:04]} 52... Rh2+ {[%clk 0:00:06.9]} 53. Nh3 {[%clk 0:00:04]} 53...
Qf6 {[%clk 0:00:06]} 54. g5 {[%clk 0:00:02.9]} 54... Qg7# {[%clk 0:00:07]} 0-1

[Event "*** Titled Tuesday Blitz"]
[Site "Chess.com"]
[Date "2019.08.06"]
[Round "10"]
[White "Wolverine_master"]
[Black "Ibraev_Vasilj"]
[Result "0-1"]
[WhiteElo "2102"]
[BlackElo "2288"]
[TimeControl "180+2"]
[EndTime "15:24:54 PDT"]
[Termination "Ibraev_Vasilj won by resignation"]

1. Nf3 {[%clk 0:03:01.9]} 1... Nf6 {[%clk 0:02:58.4]} 2. g3 {[%clk 0:03:01.8]}
2... b6 {[%clk 0:02:56.5]} 3. Bg2 {[%clk 0:03:03]} 3... Bb7 {[%clk 0:02:57.5]}
4. O-O {[%clk 0:03:04.6]} 4... c5 {[%clk 0:02:58.4]} 5. d4 {[%clk 0:03:05.5]}
5... cxd4 {[%clk 0:02:58.5]} 6. Qxd4 {[%clk 0:03:07.4]} 6... Nc6 {[%clk
0:02:55.2]} 7. Qd2 {[%clk 0:03:07.9]} 7... Qc7 {[%clk 0:02:55]} 8. c4 {[%clk
0:03:09]} 8... e6 {[%clk 0:02:53.4]} 9. Nc3 {[%clk 0:03:10]} 9... a6 {[%clk
0:02:52.7]} 10. b3 {[%clk 0:03:11.2]} 10... d6 {[%clk 0:02:53]} 11. Ba3 {[%clk
0:03:11.8]} 11... Be7 {[%clk 0:02:53.1]} 12. Rad1 {[%clk 0:03:10.9]} 12... Rd8
{[%clk 0:02:49]} 13. Ng5 {[%clk 0:03:12]} 13... O-O {[%clk 0:02:45.7]} 14. Nge4
{[%clk 0:03:12.2]} 14... Nxe4 {[%clk 0:02:31.9]} 15. Nxe4 {[%clk 0:03:13.1]}
15... d5 {[%clk 0:02:30.8]} 16. Bxe7 {[%clk 0:03:13.8]} 16... Qxe7 {[%clk
0:02:31.1]} 17. cxd5 {[%clk 0:03:15.2]} 17... Rxd5 {[%clk 0:02:29.6]} 18. Qe3
{[%clk 0:03:15.9]} 18... Rfd8 {[%clk 0:02:16.9]} 19. Nc3 {[%clk 0:03:12.9]}
19... Rxd1 {[%clk 0:02:14.3]} 20. Rxd1 {[%clk 0:03:14.8]} 20... Rxd1+ {[%clk
0:02:11.7]} 21. Nxd1 {[%clk 0:03:16.7]} 21... b5 {[%clk 0:02:10.1]} 22. Qb6
{[%clk 0:03:14.8]} 22... Qd7 {[%clk 0:02:07.6]} 23. Ne3 {[%clk 0:03:08.7]} 23...
h6 {[%clk 0:02:05.2]} 24. h4 {[%clk 0:03:08.7]} 24... h5 {[%clk 0:02:02.1]} 25.
Bf3 {[%clk 0:03:03.7]} 25... g6 {[%clk 0:02:02.7]} 26. Kg2 {[%clk 0:03:04.9]}
26... Kg7 {[%clk 0:01:54.3]} 27. Qc5 {[%clk 0:02:58.1]} 27... Kg8 {[%clk
0:01:45]} 28. Qb6 {[%clk 0:02:57.2]} 28... Kg7 {[%clk 0:01:45]} 29. a4 {[%clk
0:02:55.2]} 29... bxa4 {[%clk 0:01:42.6]} 30. bxa4 {[%clk 0:02:57.1]} 30... Nd8
{[%clk 0:01:40.9]} 31. Bxb7 {[%clk 0:02:54.7]} 31... Qxb7+ {[%clk 0:01:39.1]}
32. Qxb7 {[%clk 0:02:55.6]} 32... Nxb7 {[%clk 0:01:39.9]} 33. Nc4 {[%clk
0:02:51.9]} 33... Kf6 {[%clk 0:01:34.7]} 34. Kf3 {[%clk 0:02:51.9]} 34... e5
{[%clk 0:01:35.5]} 35. a5 {[%clk 0:02:51]} 35... Ke6 {[%clk 0:01:35.5]} 36. g4
{[%clk 0:02:52.5]} 36... hxg4+ {[%clk 0:01:29.8]} 37. Kxg4 {[%clk 0:02:54.4]}
37... Kd5 {[%clk 0:01:29.9]} 38. Nb6+ {[%clk 0:02:53.5]} 38... Kc6 {[%clk
0:01:20.9]} 39. Kg5 {[%clk 0:02:54.2]} 39... Nxa5 {[%clk 0:01:21.3]} 40. Na4
{[%clk 0:02:52.8]} 40... Nb3 {[%clk 0:01:17]} 41. Kf6 {[%clk 0:02:51.3]} 41...
Nc5 {[%clk 0:01:17.9]} 42. Nc3 {[%clk 0:02:37.1]} 42... a5 {[%clk 0:01:03]} 43.
Kxf7 {[%clk 0:02:38.1]} 43... a4 {[%clk 0:01:03.4]} 44. Kxg6 {[%clk 0:02:39.1]}
44... a3 {[%clk 0:01:04.3]} 45. h5 {[%clk 0:02:40.1]} 45... Ne6 {[%clk
0:01:04.8]} 46. h6 {[%clk 0:02:38.8]} 46... Kc5 {[%clk 0:01:05.6]} 47. h7 {[%clk
0:02:37.2]} 47... Nf8+ {[%clk 0:01:05.5]} 48. Kg7 {[%clk 0:02:37.7]} 48... Nxh7
{[%clk 0:01:06.4]} 49. Kxh7 {[%clk 0:02:39.6]} 49... Kc4 {[%clk 0:01:07.5]} 50.
Na2 {[%clk 0:02:25.3]} 50... Kb3 {[%clk 0:01:08]} 51. Nc1+ {[%clk 0:02:25.4]}
51... Kc2 {[%clk 0:00:59.1]} 52. Na2 {[%clk 0:02:23.8]} 52... Kb2 {[%clk
0:00:59]} 53. Nb4 {[%clk 0:02:19]} 53... Kb3 {[%clk 0:00:57.9]} 54. Nd3 {[%clk
0:02:18.4]} 54... e4 {[%clk 0:00:58.9]} 55. Nc5+ {[%clk 0:02:03.1]} 55... Kc4
{[%clk 0:00:51.9]} 56. Nxe4 {[%clk 0:01:58.2]} 56... a2 {[%clk 0:00:50.8]} 57.
f4 {[%clk 0:01:56.2]} 57... a1=Q {[%clk 0:00:50.5]} 58. Ng5 {[%clk 0:01:50.4]}
58... Qf6 {[%clk 0:00:43.4]} 59. e3 {[%clk 0:01:49.1]} 59... Kd3 {[%clk
0:00:43.5]} 60. e4 {[%clk 0:01:15.8]} 60... Qxf4 {[%clk 0:00:39.7]} 61. Kg6
{[%clk 0:01:16.8]} 61... Qe5 {[%clk 0:00:36.2]} 62. Kh6 {[%clk 0:01:10.4]} 62...
Ke3 {[%clk 0:00:35.4]} 63. Kg6 {[%clk 0:01:11.7]} 63... Kf4 {[%clk 0:00:35.9]}
64. Nf7 {[%clk 0:00:48.5]} 64... Qxe4+ {[%clk 0:00:32.7]} 65. Kg7 {[%clk
0:00:50.4]} 65... Qe6 {[%clk 0:00:31.3]} 66. Kf8 {[%clk 0:00:49.9]} 66... Kf5
{[%clk 0:00:27.5]} 67. Nd8 {[%clk 0:00:46.3]} 67... Qd7 {[%clk 0:00:26.6]} 68.
Nf7 {[%clk 0:00:45.5]} 68... Kf6 {[%clk 0:00:26.8]} 0-1